lending/lending_fUSD_20240128
["ID","MTS","AMOUNT","RATE_DAILY","PERIOD"]
[312883685,1706401838024,-2347.59359163,0.00054,120]
[312883686,1706401838078,-20528.85935465,0.00054,120]
[312883687,1706401838134,-900.0,0.00054,120]
[312883688,1706401838146,-2819.04784399,0.00054,120]
[312883689,1706401838159,-1251.75,0.00054,120]
[312883690,1706401838172,-4242.55195964,0.00054,120]
[312883691,1706401838192,-41196.62473321,0.00054,120]
[312883692,1706401838206,-24069.9999999,0.00054,120]
[312883693,1706401838220,-795.64,0.00054,120]
[312883699,1706401840452,-500.0,0.00052054,2]
[312883700,1706401840461,-34.17987209,0.00052054,31]
[312883701,1706401840506,-465.82012791,0.00052054,31]
[312883702,1706401840516,-300.25019249,0.00052328,2]
[312883703,1706401840527,-199.74980751,0.00052328,2]
[312883704,1706401840537,-500.0,0.00052602,2]
[312883705,1706401840546,-500.0,0.00052876,2]
[312883706,1706401840556,-195.39079077,0.0005315,2]
[312883707,1706401840567,-304.60920923,0.0005315,2]
[312883708,1706401840576,-273.93365334,0.00053424,2]
[312883709,1706401840588,-226.06634666,0.00053424,2]
[312883710,1706401840597,-500.0,0.00053698,2]
[312883711,1706401840606,-219.44734296,0.00053999,2]
[312883712,1706401840616,-3302.58843747,0.00053999,2]
[312883713,1706401840625,-618.0,0.00054,7]
[312883714,1706401840634,-82535.89787291,0.00054,120]
[312883715,1706401840646,-960.39317097,0.00054,120]
[312883716,1706401840657,-706.55085503,0.00054,120]
[312883717,1706401840669,-24848.18148521,0.00054,120]
[312883718,1706401840681,-756.87903655,0.00054,120]
[312883719,1706401840692,-1075.97623632,0.00054,120]
[312883720,1706401840704,-504.29789126,0.00054,120]
[312883721,1706401840717,-937.81709512,0.00054,120]
[312883722,1706401840729,-1284.95144135,0.00054,120]
[312883723,1706401840749,-463.38494082,0.00053972,2]
[312883724,1706401840760,-36.61505918,0.00053972,2]
[312883725,1706401840770,-285.64269012,0.00054,120]
[312883726,1706401840781,-342.108,0.00054,120]
[312883727,1706401840793,-703.19773044,0.00054,120]
[312883728,1706401840805,-955.18309447,0.00054,120]
[312883729,1706401840818,-2407.11151493,0.00054,120]
[312883730,1706401841758,-500.0,0.00052328,31]
[312883731,1706401841878,-500.0,0.00052602,31]
[312883732,1706401841904,-500.0,0.00052876,31]
[312883733,1706401841931,-500.0,0.0005315,31]
[312883734,1706401841957,-500.0,0.00053424,31]
[312883735,1706401841983,-190954.57038692,0.00054,120]
[312883736,1706401842009,-150.0,0.00054,11]
[312883737,1706401842035,-6395.42961308,0.00054,120]
[312883763,1706401843067,-195.89112521,0.00053201,15]
[312883764,1706401843076,-500.0,0.00053698,31]
[312883765,1706401843085,-500.0,0.00053972,31]
[312883766,1706401843094,-3193.98061316,0.00054,120]
[312883767,1706401843105,-526.03164004,0.00054,120]
[312883768,1706401843116,-17683.43476644,0.00054,120]
[312883769,1706401843127,-517.42995159,0.00054,120]
[312883770,1706401843138,-2160.0,0.00054,120]
[312883771,1706401843149,-508.58630886,0.00054,120]
[312883772,1706401843164,-1963.95623651,0.00054,120]
[312883773,1706401843175,-12312.80734966,0.00054,120]
[312883774,1706401843186,-1113.8701207,0.00054,120]
[312883775,1706401843197,-333.875,0.00054,120]
[312883776,1706401843208,-10755.51313818,0.00054,120]
[312883777,1706401843219,-53391.58459288,0.00054,120]
[312883778,1706401843231,-3346.91599284,0.00054,120]
[312883779,1706401843240,-695.0,0.00054,120]
[312883780,1706401843249,-13287.52197697,0.00054,120]
[312883781,1706401843261,-486.64475688,0.00054,120]
[312883782,1706401843272,-2459.53667299,0.00054,120]
[312883783,1706401843283,-4173.3,0.00054,120]
[312883784,1706401843303,-8223.63663952,0.00054,120]
[312883785,1706401843316,-460366.73442845,0.00054,120]
[312883786,1706401843334,-2414.6528193,0.00054,120]
[312883787,1706401843345,-596.42516337,0.00054,120]
[312883788,1706401843355,-679.24139272,0.00054,120]
[312883789,1706401843366,-815.88988599,0.00054,120]
[312883790,1706401843377,-935.74369826,0.00054,120]
[312883791,1706401843389,-818.84263907,0.00054,120]
[312883792,1706401843400,-660.19,0.00054,120]
[312883793,1706401843411,-2084.09343301,0.00054,120]
[312883794,1706401843422,-292.35005528,0.00054,120]
[312883795,1706401843433,-455.488698,0.00054,120]
[312883796,1706401843444,-260.2638674,0.00054,120]
[312883797,1706401843455,-701.666667,0.00054,120]
[312883798,1706401845959,-6861.385298,0.00051962,2]
[312883799,1706401845969,-500.0,0.00052054,7]
[312883800,1706401845978,-500.0,0.00052328,7]
[312883801,1706401845987,-620.901706,0.00052602,7]
[312883802,1706401845995,-2197.57944717,0.00053999,2]
[312883803,1706401846007,-460.56862197,0.00053999,2]
[312883804,1706401846019,-644.44036833,0.00053999,2]
[312883805,1706401846029,-521.0,0.00054,7]
[312883806,1706401846037,-3815.0847502,0.00054,120]
[312883807,1706401846049,-36010.89419076,0.00054,120]
[312883808,1706401846060,-2704.96513615,0.00054,120]
[312883809,1706401846075,-13694.00765756,0.00054,120]
[312883810,1706401846085,-858.62,0.00054,120]
[312883811,1706401846096,-430.0,0.00054,120]
[312883812,1706401846107,-461.53319358,0.00054,120]
[312883813,1706401846117,-854.0,0.00054,120]
[312883814,1706401846128,-1242.18682427,0.00054,120]
[312883815,1706401846139,-597.88095399,0.00054,120]
[312883816,1706401846149,-319.88125587,0.00054,120]
[312883817,1706401846191,-3626.45960306,0.00054,120]
[312883818,1706401846202,-892.54323916,0.00054,120]
[312883819,1706401846213,-1449.50463452,0.00054,120]
[312883820,1706401846224,-467.73676211,0.00054,120]
[312883821,1706401846235,-5458.16130977,0.00054,120]
[312883822,1706401846250,-6232.02633738,0.00054,120]
[312883823,1706401846261,-956.08647649,0.00054,120]
[312883824,1706401846272,-265.84776388,0.00054,120]
[312883840,1706402850090,-150.00892141,0.00024897,2]
[312883857,1706403032078,-1373.78425366,0.00024898,2]
[312883858,1706403032087,-1000.0,0.00024899,2]
[312883859,1706403032097,-150.00745862,0.000249,2]
[312883860,1706403032107,-550.0,0.00025,3]
[312883861,1706403032116,-183.53802334,0.00028,2]
[312883862,1706403032126,-1351.0,0.000288,2]
[312883863,1706403032135,-4760.0,0.000288,2]
[312883864,1706403032145,-155.0,0.0003,2]
[312883865,1706403032154,-999.99,0.000335,2]
[312883866,1706403032164,-153.49,0.000335,2]
[312883867,1706403032173,-153.49,0.000335,2]
[312883868,1706403032183,-742.57,0.00033904,20]
[312883869,1706403032193,-151.04,0.00036434,2]
[312883870,1706403032202,-499.99,0.00036434,2]
[312883871,1706403032212,-150.0,0.00037,30]
[312883872,1706403032221,-150.0,0.000372,30]
[312883873,1706403032231,-150.0,0.000374,30]
[312883874,1706403032241,-150.99,0.000374,2]
[312883875,1706403032250,-7821.84429927,0.00037658,2]
[312883876,1706403032260,-162.6,0.0003767,2]
[312883877,1706403032270,-383.48,0.00037733,2]
[312883878,1706403032279,-7628.11,0.00037733,2]
[312883879,1706403032289,-164.72,0.00037758,15]
[312883880,1706403032302,-5456.05,0.00037844,2]
[312883881,1706403032312,-528.85,0.00037849,2]
[312883882,1706403032321,-303.92,0.00037882,2]
[312883883,1706403032331,-7821.84429923,0.00037883,2]
[312883884,1706403032341,-150.0,0.00037903,2]
[312883885,1706403032351,-250.0,0.00037907,2]
[312883886,1706403032361,-250.0,0.00037928,111]
[312883887,1706403032372,-485.88,0.00037929,2]
[312883888,1706403032383,-600.0,0.00038025,2]
[312883889,1706403032392,-7821.84429923,0.00038108,2]
[312883890,1706403032402,-23900.0,0.00038126,2]
[312883891,1706403032411,-519.19,0.00038194,2]
[312883892,1706403032420,-7821.84429923,0.00038332,2]
[312883893,1706403032430,-181.86,0.00038375,2]
[312883894,1706403032439,-222.77,0.00038447,2]
[312883895,1706403032448,-7821.84429923,0.00038557,2]
[312883896,1706403032458,-160.6,0.00038639,2]
[312883897,1706403032467,-1494.4883,0.00038677,2]
[312883898,1706403032476,-558.18007705,0.00038777,18]
[312883899,1706403032486,-12670.74375425,0.00038777,19]
[312883900,1706403032495,-3227.43230849,0.00038777,19]
[312883901,1706403032504,-7821.84429923,0.00038782,2]
[312883902,1706403032514,-153.49,0.000388,3]
[312883903,1706403032523,-153.49,0.000388,3]
[312883904,1706403032532,-400.0,0.0003895,2]
[312883905,1706403032542,-1161.63,0.0003895,2]
[312883906,1706403032551,-164.98,0.0003898,2]
[312883907,1706403032560,-7821.84429923,0.00039007,2]
[312883908,1706403032569,-162.6,0.00039064,2]
[312883909,1706403032578,-160.6,0.00039142,2]
[312883910,1706403032587,-161.86,0.00039207,10]
[312883911,1706403032597,-7821.84429923,0.00039232,2]
[312883912,1706403032606,-383.48,0.00039377,2]
[312883913,1706403032615,-7821.84429923,0.00039456,2]
[312883914,1706403032625,-161.63933064,0.00039642,2]
[312883915,1706403032634,-160.6,0.00039646,2]
[312883916,1706403032643,-7821.84429923,0.00039681,2]
[312883917,1706403032652,-151.04,0.00039742,2]
[312883918,1706403032661,-7821.84429923,0.00039906,2]
[312883919,1706403032670,-4460.20725268,0.00039945,2]
[312883920,1706403032679,-7821.84429923,0.00040131,2]
[312883921,1706403032688,-160.6,0.00040149,2]
[312883922,1706403032698,-7821.84429923,0.00040355,2]
[312883923,1706403032708,-161.86,0.00040447,10]
[312883924,1706403032717,-162.6,0.00040457,2]
[312883925,1706403032727,-7821.84429923,0.0004058,2]
[312883926,1706403032737,-160.6,0.00040652,2]
[312883927,1706403032746,-7821.84429923,0.00040805,2]
[312883928,1706403032755,-168.86,0.00040985,2]
[312883929,1706403032765,-383.48,0.00041021,2]
[312883930,1706403032774,-7821.84429923,0.0004103,2]
[312883931,1706403032784,-7821.84429923,0.00041255,2]
[312883932,1706403032794,-7821.84429923,0.00041479,2]
[312883933,1706403032803,-161.86,0.00041688,10]
[312883934,1706403032811,-7821.84429923,0.00041704,2]
[312883935,1706403032821,-162.6,0.00041851,2]
[312883936,1706403032830,-1209.087258,0.000419,30]
[312883937,1706403032840,-7821.84429923,0.00041929,2]
[312883938,1706403032849,-7875.4565,0.00041929,2]
[312883939,1706403032858,-151.61231392,0.00041931,14]
[312883940,1706403032869,-518.65390826,0.0004195,5]
[312883941,1706403032878,-188.13113695,0.0004195,2]
[312883942,1706403032888,-425.45561324,0.0004195,14]
[312883943,1706403032897,-852.01857432,0.0004195,16]
[312883944,1706403032907,-3068.0,0.0004199,2]
[312883945,1706403032917,-604.0,0.0004199,2]
[312883946,1706403032926,-703.54210241,0.00042029,4]
[312883947,1706403032935,-53168.37575217,0.00042029,2]
[312883948,1706403032948,-382.79755243,0.00042029,2]
[312883949,1706403032969,-279.69657276,0.00042029,2]
[312883950,1706403032981,-299.84,0.00042029,2]
[312883951,1706403032993,-1692.26572143,0.00042029,2]
[312883952,1706403033005,-2232.62973941,0.00042029,2]
[312883953,1706403033016,-679.70803117,0.00042029,2]
[312883954,1706403033028,-1270.173871,0.00042029,2]
[312883955,1706403033040,-281.63740935,0.00042029,2]
[312883956,1706403033052,-1682.8704383,0.00042029,2]
[312883957,1706403033068,-63529.74127859,0.00042029,2]
[312883963,1706403038877,-2032.41972289,0.00042029,2]
[312883965,1706403038889,-7319.40768473,0.00042029,2]
[312883966,1706403038898,-157.65743484,0.00042029,30]
[312883967,1706403038908,-196.51086474,0.0004203,4]
[312883968,1706403038917,-201.35171936,0.0004203,4]
[312883969,1706403038926,-268.40415702,0.0004203,30]
[312883970,1706403038935,-524.21526262,0.0004203,4]
[312883971,1706403038945,-230.46970208,0.0004203,4]
[312883972,1706403038954,-867.41087233,0.0004203,2]
[312883973,1706403038963,-197.10559229,0.0004204,2]
[312883974,1706403038973,-6407.81360838,0.0004205,30]
[312883975,1706403038988,-6037.62871272,0.0004205,30]
[312883976,1706403038999,-298.47099236,0.0004205,30]
[312883977,1706403039010,-40907.81699032,0.0004205,30]
[312883978,1706403039021,-111006.5576324,0.0004205,30]
[312883979,1706403039033,-953.33214397,0.0004205,30]
[312883980,1706403039049,-13238.75545608,0.0004205,30]
[312883981,1706403039061,-202087.41633692,0.0004205,30]
[312883982,1706403039132,-5840.27851574,0.0004205,30]
[312883983,1706403039145,-7976.5933791,0.0004205,30]
[312883984,1706403039156,-2475.66949071,0.0004205,30]
[312883985,1706403039170,-349.18887466,0.0004205,30]
[312883986,1706403039181,-1412.84505,0.0004205,30]
[312883987,1706403039193,-1804.0282821,0.0004205,30]
[312883988,1706403039206,-398.93,0.0004205,30]
[312883989,1706403039238,-890.51329886,0.0004205,30]
[312884155,1706403040644,-549.5552,0.00038777,18]
[312884251,1706403043152,-1272.5169984,0.00038777,18]
[312884252,1706403043161,-413.82045147,0.0004195,18]
[312884253,1706403043172,-155.0,0.00042049,2]
[312884254,1706403043181,-158.06255013,0.0004205,30]
[312884255,1706403043537,-5792.9308703,0.0004205,30]
[312884371,1706403051942,-45037.59662877,0.0004205,30]
[312884372,1706403052347,-2079.45,0.0004205,30]
[312884373,1706403052370,-4140.69921711,0.0004205,30]
[312884374,1706403052382,-585.49045393,0.0004205,30]
[312884375,1706403052396,-1370.46061048,0.0004205,30]
[312884376,1706403052408,-130100.49904228,0.0004205,30]
[312884377,1706403052420,-81277.43611482,0.0004205,30]
[312884378,1706403052432,-775.80915422,0.0004205,30]
[312884379,1706403052448,-4204.2918,0.0004205,30]
[312884380,1706403194887,-1000.0,0.00022765,2]
[312884381,1706403194912,-504.85794256,0.00022766,2]
[312884382,1706403194937,-530.28990849,0.00022767,2]
[312884383,1706403194961,-4254.43719293,0.00022767,2]
[312884384,1706403194986,-222.13842387,0.00022769,4]
[312884385,1706403195009,-1373.78425366,0.00022997,2]
[312884386,1706403195035,-435.21804576,0.00022998,2]
[312884387,1706403195060,-359.53226998,0.00022999,2]
[312884388,1706403195084,-206.79487175,0.00022999,2]
[312884389,1706403195108,-215.70696346,0.00022999,2]
[312884390,1706403195134,-17542.68777268,0.00022999,2]
[312884391,1706403195164,-4973354.55235486,0.00023,2]
[312884392,1706403210283,171.38183166,0.00026,11]
[312884393,1706403210674,-1572.5168,0.000229,2]
[312884394,1706403210701,-98427.4832,0.000229,2]
[312884395,1706403211543,-100000.0,0.000229,2]
[312884396,1706403225457,150.0,0.00022,2]
[312884397,1706403225477,100.0,0.00022,2]
[312884398,1706403226729,50.0,0.00022274,2]
[312884399,1706403226749,150.0,0.00022274,2]
[312884400,1706403226769,150.0,0.00022274,2]
[312884401,1706403226789,44.91908565,0.00022274,2]
[312884403,1706403268563,105.08091435,0.00022,2]
[312884404,1706403268583,44.91908565,0.00022,2]
[312884408,1706403271295,336.95912821,0.00022999,10]
[312884409,1706403271349,336.95912821,0.00022999,10]
[312884410,1706403282575,105.08091435,0.00021857,2]
[312884411,1706403282595,150.0,0.00021857,2]
[312884412,1706403282615,150.0,0.00021857,2]
[312884413,1706403282634,190.47,0.00021857,2]
[312884414,1706403282657,857.16809471,0.00021857,2]
[312884415,1706403282687,2475.29256209,0.00022085,2]
[312884416,1706403332914,286.89393575,0.00022,2]
[312884418,1706403339142,150.0,0.00022,2]
[312884423,1706403443975,176.61,0.00022,2]
[312884456,1706403584244,158.67,0.00022192,2]
[312884459,1706403768236,160.74,0.00022603,10]
[312884460,1706403768487,160.74,0.00023711,10]
[312884461,1706403768712,160.74,0.00024819,10]
[312884462,1706403822125,158.13118566,0.00022422,2]
[312884463,1706403822286,232.65,0.00022362,2]
[312884464,1706403879775,504.85794256,0.000225,2]
[312884465,1706403888076,172.21006777,0.000225,2]
[312884466,1706403888235,1000.0,0.000225,2]
[312884467,1706403902229,1373.78425366,0.000225,2]
[312884468,1706403929483,250.0,0.00022056,2]
[312884469,1706403946924,480.0,0.00021921,2]
[312884470,1706403980744,1373.78425366,0.000225,2]
[312884471,1706404020636,158.67,0.00019944,2]
[312884472,1706404031097,-154.6957689,0.00022501,2]
[312884474,1706404041102,-78.92514149,0.00022501,2]
[312884475,1706404041125,-76.17697973,0.00022502,2]
[312884476,1706404060515,176.61,0.00022,2]
[312884477,1706404080209,153.29,0.00022107,2]
[312884478,1706404080425,153.29,0.00022235,2]
[312884479,1706404080638,153.29,0.00022363,2]
[312884480,1706404081003,153.29,0.00022491,2]
[312884481,1706404156548,191.74,0.00021824,2]
[312884482,1706404205606,168.86,0.00021824,2]
[312884483,1706404206939,3905.46,0.00021824,2]
[312884484,1706404211645,248.73,0.00021845,2]
[312884485,1706404226932,4254.43719293,0.000225,2]
[312884490,1706404232268,-472.96270286,0.00022501,5]
[312884493,1706404232280,-391.9015,0.00022501,5]
[312884498,1706404232326,-1929.16474053,0.00022501,5]
[312884499,1706404232378,-547.4688403,0.00022501,5]
[312884500,1706404232434,-3777.06193721,0.00022501,5]
[312884501,1706404232444,-81.95420589,0.00022502,2]
[312884502,1706404232453,-22649.66015015,0.00022502,2]
[312884503,1706404232462,-150.0,0.00022504,2]
[312884504,1706404232471,-150.0,0.00022548,2]
[312884505,1706404232481,-150.0,0.00022548,2]
[312884506,1706404232490,-176.61,0.00022548,2]
[312884507,1706404232499,-158.13118562,0.00022581,2]
[312884508,1706404232508,-346.37,0.00022609,2]
[312884509,1706404232518,-153.29,0.00022619,2]
[312884510,1706404232528,-3067.86,0.00022619,2]
[312884511,1706404232537,-19876.86414371,0.00022658,2]
[312884512,1706404232546,-237.24,0.00022658,2]
[312884513,1706404232556,-499.99,0.00022658,2]
[312884514,1706404232566,-158.13118562,0.00022661,2]
[312884515,1706404232575,-170.95041969,0.00022666,2]
[312884516,1706404232584,-949.99107859,0.00022666,2]
[312884517,1706404232594,-232.65979425,0.00022666,2]
[312884518,1706404232603,-596.91151641,0.00022667,2]
[312884520,1706404232612,-52288.8074,0.00022668,2]
[312884521,1706404232621,-7471.521,0.00022668,2]
[312884522,1706404232631,-25618.7612,0.0002267,2]
[312884523,1706404232640,-5210.7899,0.0002267,2]
[312884524,1706404232649,-151.80495034,0.00022712,2]
[312884525,1706404232658,-158.13118562,0.00022741,2]
[312884526,1706404232669,-153.29,0.00022747,2]
[312884527,1706404232678,-356.4982323,0.00022768,2]
[312884528,1706404232691,-1418.26758153,0.00022768,2]
[312884529,1706404232701,-523.91888511,0.00022768,2]
[312884530,1706404232710,-432.50906314,0.00022768,2]
[312884531,1706404232720,-689.73808558,0.00022768,2]
[312884532,1706404232729,-164.96152334,0.00022768,2]
[312884533,1706404232741,-231.76884349,0.00022768,2]
[312884534,1706404232751,-92618.18658535,0.00022768,2]
[312884535,1706404232760,-4147.38163494,0.00022768,2]
[312884536,1706404232770,-155.29116631,0.00022768,2]
[312884537,1706404232780,-509.16887593,0.00022768,2]
[312884538,1706404232790,-159.86355744,0.00022768,2]
[312884539,1706404232800,-284.46902432,0.00022768,2]
[312884540,1706404232809,-877.37870005,0.00022768,2]
[312884541,1706404232818,-1492.68847402,0.00022768,2]
[312884542,1706404232828,-2136.88917053,0.00022768,2]
[312884543,1706404232838,-155.0,0.00022768,2]
[312884544,1706404232847,-224.78131996,0.00022768,2]
[312884545,1706404232856,-718.56340982,0.00022768,2]
[312884546,1706404232865,-474.50251193,0.00022768,2]
[312884547,1706404232877,-158.67,0.00022812,2]
[312884548,1706404232887,-158.13118562,0.0002282,2]
[312884549,1706404232896,-153.29,0.00022875,2]
[312884550,1706404232905,-800.0,0.00022877,2]
[312884551,1706404232915,-1634.71,0.00022899,2]
[312884552,1706404232924,-42456.9088,0.000229,2]
[312884553,1706404232933,-166.6237,0.000229,2]
[312884554,1706404232943,-406.4,0.000229,2]
[312884555,1706404232952,-205.21073047,0.000229,2]
[312884556,1706404232961,-151.37692221,0.000229,2]
[312884557,1706404232971,-158.13118562,0.000229,2]
[312884558,1706404232980,-375.79886242,0.000229,2]
[312884559,1706404232989,-558.2078508,0.000229,2]
[312884560,1706404232998,-321.87151247,0.000229,2]
[312884561,1706404233008,-7608.61235076,0.000229,2]
[312884562,1706404233018,-827.64090294,0.000229,2]
[312884563,1706404233028,-217.80603999,0.0002299,2]
[312884564,1706404233041,-217.80603999,0.0002299,2]
[312884565,1706404233050,-527.00716901,0.00022999,2]
[312884566,1706404233059,-1642194.44802194,0.00023,2]
[312884567,1706404233073,-710.46205007,0.00023,2]
[312884568,1706404233093,-1118.59559007,0.00023,2]
[312884569,1706404233108,-3029.50150703,0.00023,2]
[312884570,1706404233120,-1824.32798946,0.00023,2]
[312884571,1706404233132,-9706.37001802,0.00023,2]
[312884572,1706404234769,1373.78425366,0.000225,2]
[312884582,1706404238420,-198.93815682,0.000229,2]
[312884583,1706404238429,-710.38469825,0.000229,2]
[312884584,1706404238648,-0.83942956,0.000229,2]
[312884585,1706404238662,-483.59727999,0.000229,2]
[312884586,1706404238672,-2091913.35617192,0.00023,2]
[312884587,1706404238682,-2232272.94682149,0.00023,2]
[312884604,1706404241032,-1507.43479476,0.00023,2]
[312884605,1706404241044,-1050.6341,0.00023,2]
[312884606,1706404241716,-707.75689818,0.00023,2]
[312884644,1706404243731,-796.08330415,0.00022999,2]
[312884645,1706404243742,-28999.8050332,0.00023,2]
[312884646,1706404243757,-3139.96910233,0.00023,2]
[312884647,1706404243769,-1407.54010643,0.00023,2]
[312884659,1706404246433,-2731.47831579,0.00022999,2]
[312884660,1706404246444,-695.69933514,0.00022999,2]
[312884661,1706404246878,-19222.48249922,0.00022999,2]
[312884663,1706404246887,-144508.59583745,0.00023,2]
[312884665,1706404246899,-740.98410224,0.00023,2]
[312884668,1706404246918,-7525.36336016,0.00023,2]
[312884685,1706404247585,155.0,0.00022999,7]
[312884686,1706404258213,418.31655925,0.00022078,2]
[312884687,1706404264726,1947.49601127,0.00022078,2]
[312884688,1706404267571,255.80592977,0.00022998,7]
[312884690,1706404461111,151.97,0.00022223,2]
[312884691,1706404866378,1503.47446548,0.00022372,2]
[312884692,1706404960355,151.97,0.00021304,2]
[312884693,1706404992320,1503.47446548,0.00022413,2]
[312884694,1706404992614,1503.47446548,0.0002248,2]
[312884695,1706405241111,-155.0,0.00022768,2]
[312884696,1706405241132,-0.41286398,0.00022769,2]
[312884697,1706405294135,176.61,0.00022,2]
[312884698,1706405377578,151.97,0.00020642,2]
[312884713,1706405431718,-190.43458152,0.00022548,2]
[312884714,1706405431727,-1373.78425366,0.00022662,2]
[312884715,1706405431737,-616.0,0.00022663,2]
[312884716,1706405431746,-702.3084,0.0002267,2]
[312884717,1706405431755,-155.35428571,0.00022768,2]
[312884718,1706405431765,-1000.0,0.00022769,2]
[312884719,1706405431775,-155.36928119,0.00022799,2]
[312884720,1706405431784,-3008.6825,0.000228,2]
[312884721,1706405431794,-150.0,0.00022899,2]
[312884722,1706405431803,-3605.36906638,0.00022899,2]
[312884723,1706405431812,-585.4905,0.000229,2]
[312884724,1706405431821,-95390.1666,0.000229,2]
[312884725,1706405431830,-500.0,0.000229,2]
[312884726,1706405431840,-218.30148879,0.000229,2]
[312884727,1706405431849,-151.08297639,0.000229,2]
[312884728,1706405431858,-150.36366082,0.000229,2]
[312884730,1706405431867,-151.135918,0.000229,2]
[312884731,1706405431876,-12300.43794477,0.00022997,2]
[312884733,1706405431885,-313.74,0.00022997,2]
[312884735,1706405431894,-13259.18,0.00022997,2]
[312884737,1706405431904,-999.99,0.00022997,2]
[312884739,1706405431913,-1000.0,0.00022998,2]
[312884741,1706405431922,-1000.0,0.00022999,2]
[312884743,1706405431931,-221.01173414,0.00022999,5]
[312884745,1706405431940,-499.99,0.00022999,2]
[312884747,1706405431950,-1003.77588213,0.00022999,5]
[312884749,1706405431959,-328605.57262778,0.00023,2]
[312884773,1706405438784,-155.92152823,0.000229,2]
[312884774,1706405438793,-6699.94054472,0.00023,2]
[312884775,1706405438805,-544.6798,0.00023,2]
[312884776,1706405438967,-1001.12904728,0.00023,2]
[312884777,1706405438978,-5174.00716323,0.00023,2]
[312884879,1706405440051,-6044.41047548,0.00023,2]
[312884881,1706405440062,-4085.5789353,0.00023,2]
[312884883,1706405440074,-16913.3,0.00023,2]
[312884886,1706405440085,-727.84599298,0.00023,2]
[312884996,1706405442262,-221.3724,0.000228,2]
[312884999,1706405442271,-622.6696933,0.00023,2]
[312885001,1706405442282,-297.77837325,0.00023,2]
[312885004,1706405442293,-800.09071112,0.00023,2]
[312885005,1706405442304,-1326.49945108,0.00023,2]
[312885006,1706405442316,-1898.644,0.00023,2]
[312885007,1706405442338,-1020.45879802,0.00023,2]
[312885008,1706405442350,-978.84687834,0.00023,2]
[312885009,1706405442419,-1118.25783132,0.00023,2]
[312885010,1706405442430,-19544.56249425,0.00023,2]
[312885011,1706405442526,-1106.90775838,0.00023,2]
[312885012,1706405442538,-4978.16417335,0.00023,2]
[312885013,1706405442549,-877.58877365,0.00023,2]
[312885014,1706405442561,-4641.37925314,0.00023,2]
[312885015,1706405442586,-2612.93383999,0.00023,2]
[312885016,1706405442598,-256.81548211,0.00023,2]
[312885017,1706405442609,-33850.93709831,0.00023,2]
[312885018,1706405442620,-323.66281797,0.00023,2]
[312885019,1706405442632,-844.56366426,0.00023,2]
[312885020,1706405442706,-264.48078886,0.00023,2]
[312885021,1706405442718,-931.13278959,0.00023,2]
[312885022,1706405442737,-5535.43749874,0.00023,2]
[312885023,1706405442749,-19218.61801161,0.00023,2]
[312885024,1706405442760,-887.94609037,0.00023,2]
[312885025,1706405442772,-750.86096174,0.00023,2]
[312885026,1706405442862,-1803.79508329,0.00023,2]
[312885027,1706405443120,-4638.0,0.00023,2]
[312885028,1706405443132,-479.682,0.00023,2]
[312885035,1706405445605,-401.08,0.00023,2]
[312885036,1706405445617,-2289.21392245,0.00023,2]
[312885037,1706405445647,-874.86681029,0.00023,2]
[312885038,1706405445843,-521.08361,0.00023,2]
[312885039,1706405445856,-2108.2,0.00023,2]
[312885040,1706405445869,-255.10379202,0.00023,2]
[312885041,1706405445883,-756.24104773,0.00023,2]
[312885042,1706405445895,-7484.26995118,0.00023,2]
[312885043,1706405454689,1284.47330322,0.00020642,5]
[312885044,1706405456378,420.78744355,0.00022078,2]
[312885045,1706405470385,298.95189504,0.00022078,2]
[312885049,1706405588467,166.86,0.00023275,10]
[312885051,1706405729776,507.2,0.00022303,2]